Cogmind - Beta 13 @@@ ROGUE MODE // 2024.07.06 @ 23:14:57 Player: visilii Result: Destroyed by Y-45 Defender with Heavy Assault Rifle Performance ------------- Evolutions (1) 500 Regions Visited (2) 400 Robots Destroyed (41) 205 Value Destroyed (896) 896 Prototype IDs (4) 80 Alien Tech Used (0) 0 Bonus (0) 0 TOTAL SCORE: 2081 Bonus ------- None Cogmind --------- Core Integrity 0/400 Matter 263/300 Energy 100/100 System Corruption 0% Temperature Cool (9) Movement Core (700) Ox13 Location -9/Materials Parts ------- > --- POWER (1) -------- (None) > --- PROPULSION (3) --- (None) > --- UTILITY (3) ------ High-capacity Storage Unit Signal Interpreter > --- WEAPON (2) ------- (None) > --- INVENTORY (20) --- Ion Engine Small Storage Unit Targeting Computer ECM Suite ECM Suite Plasma Cutter Mining Claw Peak State ------------ > --- POWER ------------ Light Ion Engine > --- PROPULSION ------- Cesium-ion Thruster Cesium-ion Thruster Cesium-ion Thruster > --- UTILITY ---------- Small Storage Unit Signal Interpreter ECM Suite > --- WEAPON ----------- EM Shotgun Katana > --- INVENTORY -------- Light Ion Engine Small Storage Unit Targeting Computer ECM Suite Beam Cannon Light Assault Rifle Mining Claw [Rating: 18] Favorites ----------- Power Light Ion Engine Engine Light Ion Engine Propulsion Aluminum Leg Leg Aluminum Leg Flight Unit Cesium-ion Thruster Utility Small Storage Unit Device ECM Suite Storage Small Storage Unit Processor Signal Interpreter Weapon Katana Energy Gun EM Shotgun Energy Cannon Beam Cannon Ballistic Gun Assault Rifle Launcher Rocket Launcher Slashing Weapon Katana Build | -11 -10 -9 ------- Run | Yrd Mat Mat Slots Evolved 2 | . . 2 Power . | . . . Propulsion 1 | . . 1 Utility 1 | . . 1 Weapon . | . . . Parts Attached 40 | 7 8 25 Power 5 | 1 1 3 Engine 5 | 1 1 3 Core . | . . . Reactor . | . . . Propulsion 12 | 2 2 8 Treads . | . . . Leg 9 | 2 2 5 Wheel . | . . . Hover . | . . . Flight 3 | . . 3 Utility 7 | 1 3 3 Device 3 | . 2 1 Storage 2 | 1 . 1 Processor 2 | . 1 1 Hackware . | . . . Protection . | . . . Artifact . | . . . Weapon 16 | 3 2 11 Energy Gun 4 | . . 4 Energy Cannon 1 | . 1 . Ballistic Gun 6 | 3 . 3 Ballistic Cannon . | . . . Launcher 3 | . 1 2 Special Weapon . | . . . Impact Weapon . | . . . Slashing Weapon 2 | . . 2 Piercing Weapon . | . . . Special Melee Weapon . | . . . Unidentified Prototypes 2 | . . 2 Parts Lost 14 | . 1 13 Power 3 | . 1 2 Propulsion 6 | . . 6 Utility 1 | . . 1 Weapon 4 | . . 4 Highest Loss Streak 8 | . 1 8 To Critical Strikes . | . . . Average Slot Usage (%) 93 | . 98 90 Engine 11 | . 14 10 Leg 22 | . 28 19 Flight 3 | . . 5 Device 11 | . 12 10 Storage 12 | . 14 11 Processor 7 | . . 11 Energy Gun 2 | . . 3 Energy Cannon 4 | . 9 1 Ballistic Gun 3 | . 8 . Launcher 6 | . 10 5 Slashing Weapon 6 | . . 10 Naked Turns . | . . . Heaviest Build 52 | 12 16 52 Greatest Support 30 | 20 20 30 Greatest Overweight (x) 4 | . . 4 Average Overweight (x) . | . . . Largest Inventory Capacity 20 | 8 8 20 Average Capacity 11 | 6 8 13 Most Carried 10 | 5 8 10 Average Carried 7 | 2 6 7 Final Capacity 20 | 8 8 20 Final Carried 8 | 2 8 7 Class Distribution -------------------- 57% | Mutant 31% | Scavenger-Mutant 10% | Sprinter Dominant Class ---------------- Mutant | -10/Materials Scavenger-Mutant | -9/Materials Resources | -11 -10 -9 ----------- Run | Yrd Mat Mat Matter Collected 705 | 249 169 287 Remotely . | . . . Salvage Created 937 | . 413 524 Parts 67 | . 25 42 Haulers Intercepted 3 | . 1 2 Recyclers Shooed 2 | . 2 . Parts Field Recycled . | . . . Retrieved Matter . | . . . Parts Self-Destructed . | . . . Prevented . | . . . Kills | -11 -10 -9 ------- Run | Yrd Mat Mat Combat Hostiles Destroyed 29 | . 12 17 Melee 10 | . . 10 Guns 2 | . 1 1 Cannons 3 | . 3 . AOE 14 | . 8 6 Classes Destroyed 9 | . 7 2 Worker 1 | . 1 . Tunneler 1 | . . 1 Hauler 3 | . 1 2 Recycler 1 | . 1 . Operator 1 | . 1 . Watcher 5 | . 3 2 Swarmer 12 | . 3 9 Grunt 14 | . 9 5 Sentry 3 | . . 3 Best Kill Streak 10 | . 10 5 Combat Bots Only 6 | . 6 4 Max Kills in Single Turn 3 | . 3 3 Gunslinging . | . . . Exploded 3 | . 2 3 Melee 1 | . . 1 Uniques/NPCs Destroyed . | . . . Combat | -11 -10 -9 -------- Run | Yrd Mat Mat Hostile Shots Fired 234 | . 75 159 Missed 65 | . 25 40 Damage Taken 1960 | . 617 1343 Core 556 | . 151 405 Absorbed by Shields . | . . . Core Remaining (%) 69 | 100 39 . Volleys Fired 59 | . 29 30 Largest 2 | . 2 1 Hottest 90 | . 90 60 Shots Fired 78 | . 48 30 Gun 36 | . 18 18 Cannon 19 | . 18 1 Launcher 23 | . 12 11 Special . | . . . Kinetic 28 | . 18 10 Thermal 27 | . 18 9 Explosive 23 | . 12 11 Electromagnetic . | . . . Robot Hit Streak 7 | . 7 5 Robot Miss Streak 5 | . 4 5 Penetration Max . | . . . Secondary Targets 1 | . 1 . Max Gunslinging Chain 1 | . 1 . Shots Hit Robots 65 | . 26 39 Core Hits 65 | . 34 31 Critical Kills . | . . . Critical Parts Destroyed . | . . . Critical Strikes 1 | . . 1 Sever 1 | . . 1 Melee Attacks 28 | . . 28 Impact . | . . . Slashing 28 | . . 28 Piercing . | . . . Sneak Attacks . | . . . Combat Hostiles . | . . . Follow-up Attacks . | . . . Damage Inflicted 2562 | . 1235 1327 Guns 269 | . 173 96 Cannons 192 | . 175 17 Explosions 1346 | . 877 469 Melee 744 | . . 744 Ramming 11 | . 10 1 Kinetic 217 | . 173 44 Thermal 244 | . 175 69 Explosive 1346 | . 877 469 Electromagnetic . | . . . Impact . | . . . Slashing 744 | . . 744 Piercing . | . . . Highest Corruption 1 | . 1 . Average Corruption 1 | . 1 . Corruption Purged . | . . . Corruption Blocked . | . . . Overload Shots . | . . . Overflow Damage 20 | . 9 11 Projectiles . | . . . Explosions 9 | . 9 . Melee 11 | . . 11 Knockbacks . | . . . Impact . | . . . Kinetic . | . . . Secondary . | . . . Self-Inflicted Damage 95 | . 48 47 Shots 7 | . 3 4 Rammed 2 | . . 2 Targets Rammed 8 | . 4 4 Kicked 6 | . 4 2 Crushed . | . . . Highest Temperature 142 | . 142 100 Average Temperature 38 | . 39 36 Received Heat Transfer 735 | . 297 438 Siege Activations . | . . . Robots Corrupted . | . . . Combat Hostiles . | . . . Parts Fried . | . . . Impact Corruptions . | . . . Robots Melted . | . . . Combat Hostiles . | . . . Parts Melted . | . . . Heat Transferred 518 | . 370 148 Parts Sabotaged . | . . . Parts Stolen . | . . . Parts Stripped . | . . . Power Chain Reactions . | . . . Alert | -11 -10 -9 ------- Run | Yrd Mat Mat Peak Influence 386 | . 309 386 Initial 130 | . . 130 Average 215 | . 150 262 Maximum Alert Level 1 | . 1 1 Low Security (%) 38 | 100 48 29 Level 1 61 | . 51 70 Level 2 . | . . . Level 3 . | . . . Level 4 . | . . . Level 5 . | . . . High Security . | . . . Max Security . | . . . Squads Dispatched 6 | . 4 2 Investigation . | . . . Extermination . | . . . Reinforcement 6 | . 4 2 Assault . | . . . Garrison . | . . . Intercept . | . . . Searches Triggered . | . . . Construction Impeded . | . . . Haulers Reinforced . | . . . Active Scanning Responses . | . . . Cargo Convoy Interrupts . | . . . Stealth | -11 -10 -9 --------- Run | Yrd Mat Mat Distress Signals 2 | . 2 . Communications Jammed . | . . . Distress Signals . | . . . Times Spotted 55 | . 22 33 Peak Tracking Total 7 | . 7 7 Tactical Retreats 2 | . . 2 Traps | -11 -10 -9 ------- Run | Yrd Mat Mat Traps Triggered 1 | . 1 . Indirectly . | . . . Trap Hack Attempts . | . . . Triggered . | . . . Disarmed . | . . . Reprogrammed . | . . . Reused . | . . . Traps Extracted . | . . . Installed . | . . . Triggered . | . . . Machines | -11 -10 -9 ---------- Run | Yrd Mat Mat Machines Disabled 1 | . 1 . Max in Single Turn 1 | . 1 . Machines Repaired . | . . . Machines Dismantled . | . . . Machines Sabotaged . | . . . Overloaded Fab Kills . | . . . Hacking | -11 -10 -9 --------- Run | Yrd Mat Mat Machines Accessed 7 | . 2 5 Terminals 6 | . 1 5 Fabricators . | . . . Repair Stations . | . . . Recycling Units 1 | . 1 . Scanalyzers . | . . . Garrison Access . | . . . Total Hacks 21 | . 9 12 Successful 12 | . 6 6 Failed 9 | . 3 6 Catastrophic . | . . . Database Lockouts . | . . . Manual . | . . . Terminals 17 | . 5 12 Fabricators . | . . . Repair Stations . | . . . Recycling Units 4 | . 4 . Scanalyzers . | . . . Garrison Access . | . . . Terminal Hacks 9 | . 3 6 Record 3 | . . 3 Robot Analysis 1 | . 1 . Prototype ID Bank 1 | . . 1 Dispatch Records 1 | . . 1 Patrol Status 1 | . 1 . Hauler Manifests 2 | . 1 1 Fabricator Hacks . | . . . Repair Station Hacks . | . . . Recycling Unit Hacks 3 | . 3 . Report Inventory 1 | . 1 . Retrieve Matter 1 | . 1 . Retrieve Components 1 | . 1 . Scanalyzer . | . . . Garrison Access Hacks . | . . . Unauthorized Hacks . | . . . Terminals . | . . . Fabricators . | . . . Repair Stations . | . . . Recycling Units . | . . . Scanalyzers . | . . . Garrison Access . | . . . Data Cores Recovered . | . . . Used . | . . . Hacking Detections 3 | . 1 2 Full Trace Events 2 | . 1 1 Feedback Events . | . . . Feedback Blocked . | . . . Robot Schematics Acquired . | . . . Robots Built . | . . . Authchips . | . . . Time . | . . . Total Robot Build Rating . | . . . Part Schematics Acquired . | . . . Parts Built . | . . . Authchips . | . . . Time . | . . . Total Part Build Rating . | . . . Parts Repaired . | . . . Time . | . . . Parts Recycled . | . . . Recycled Matter . | . . . Retrieved Matter 80 | . 80 . Retrieved Components 10 | . 10 . Parts Scanalyzed . | . . . Part Schematics Acquired . | . . . Parts Damaged . | . . . Bothacking | -11 -10 -9 ------------ Run | Yrd Mat Mat Used RIF Installer . | . . . Robots Hacked . | . . . Non-combat . | . . . Combat . | . . . Robot Hacks Applied . | . . . Relay Couplers Released . | . . . Fabnet Peak Effective % . | . . . Robots Rewired . | . . . Allies Hacked . | . . . Hacks Repelled . | . . . Allies | -11 -10 -9 -------- Run | Yrd Mat Mat Total Allies . | . . . Largest Group . | . . . Highest-Rated Group . | . . . Highest-Rated Ally . | . . . Total Orders . | . . . Ally Attacks . | . . . Total Damage . | . . . Kills . | . . . Allies Corrupted . | . . . Allies Melted . | . . . Intel | -11 -10 -9 ------- Run | Yrd Mat Mat Robot Analysis Total 1 | . 1 . Derelict Logs Recovered . | . . . Drone Launches . | . . . Drone Recoveries . | . . . Exploration | -11 -10 -9 ------------- Run | Yrd Mat Mat Turns Passed 2088 | 60 740 1288 Spaces Moved 1075 | 46 467 562 Core 38 | 16 . 22 Treads . | . . . Legs 910 | 30 467 413 Wheels . | . . . Hover . | . . . Flight 127 | . . 127 Fastest Speed 29 | 50 120 29 Average Speed 132 | 95 120 145 Slowest Speed 260 | 120 120 260 Overloaded Moves . | . . . Propulsion Burnouts . | . . . Robots Hopped . | . . . Cave-ins Triggered . | . . . Exploration Rate (%) 39 | 4 66 49 Regions Visited 2 Branch Regions . Pre-discovered Areas . | . . . Known Exits Taken . | . . . Unknown Exits Taken 2 | 1 1 . Scrap Searched . | . . . Spaces Dug . | . . . Terrain Destroyed 136 | . 58 78 Melee . | . . . Projectile . | . . . AOE 136 | . 58 78 Terrain Rammed . | . . . Walls Destroyed . | . . . Machines Disabled . | . . . Actions | -11 -10 -9 --------- Run | Yrd Mat Mat Total 1601 | 61 597 943 Wait 330 | 1 73 256 Move 1073 | 45 466 562 Hop . | . . . Pick Up 43 | 8 13 22 Fast Attach . | . . . Attach 20 | 6 2 12 Detach 1 | . . 1 Swap 20 | 1 6 13 Drop 19 | . 4 15 Fire 59 | . 29 30 Melee 28 | . . 28 Ram 2 | . . 2 Kick 6 | . 4 2 Crush . | . . . Escape Stasis . | . . . Rewire . | . . . Trap . | . . . Miscellaneous . | . . . Route ------- -11/Scrapyard -10/Materials (discovered 2 exits: *Mat / [*Min]) -9/Materials (discovered 2 exits: *Mat x2) History --------- Turn | Location | Event 5 | -11/Scrapyard | Discovered new exit (range 16) 61 | -11/Scrapyard | Entered Materials 168 | -10/Materials | Discovered new exit (range 13) 283 | -10/Materials | Core integrity fell below 50% 363 | -10/Materials | Build established: Mutant 662 | -10/Materials | Discovered new exit (range 13) 801 | -10/Materials | Entered another Materials area 801 | -9/Materials | Evolved 2 slots: Propulsion x1, Utility x1 1065 | -9/Materials | Lost 5 parts (1p3n1w) 1478 | -9/Materials | Discovered new exit (range 10) 1499 | -9/Materials | Identified exit to Materials 1706 | -9/Materials | Build established: Scavenger-Mutant 1733 | -9/Materials | Core integrity fell below 50% 1819 | -9/Materials | Discovered exit to Materials (range 15) 2075 | -9/Materials | Core integrity fell below 20% 2089 | -9/Materials | Destroyed by Y-45 Defender with Heavy Assault Rifle Last Messages --------------- Dropped Welding Torch. Connecting with Terminal... Aluminum Leg destroyed. Critical hit (Burn: +37). Sensor Array destroyed. S-10 Pest destroyed. Acquired 16 matter. Rocket Launcher destroyed. S-10 Pest destroyed. Aluminum Leg destroyed. Ion Engine destroyed. Katana destroyed. Kicked Y-45 Defender. Aluminum Leg destroyed. Slammed into Y-45 Defender. G-34 Mercenary destroyed. S-10 Pest destroyed. Critical hit (Burn: +37). Imp. Assault Rifle destroyed. Slammed into Y-45 Defender. Map ----- +----------------------------------------------------+ | ?????????????????????# """""#????# #""" # | | ?????????????????????# """""#????# #""" # | | ?????????????????????# """""#????# #""" + | | ?????????????????????# ??"" #????# # # | | ?????????????????????# ??????????# # # | | ?????????????????????###???????????# ######## | | ???????????????????????????????????# #??????# | | ???????????????????????????????????# #??????# | | ????????????????????????? ?????????# +??????# | | ????????????????????????? ?????????# #??????# | | ????????????????????????? ?????????# #??????# | | ????????????????????????? ????????## ##?????# | | ????????????????????????# ????????# ####### | | ????????????????????????# #???????# | | ???????????????????????# ######## T | | ???????????????????????# | | ???????????????????????# ##/##### ### ### | | ????????????????????????# ## ######+##### #?# | | ????????????????????????# ## ## # #?# < | | ????????????????????????# ## ## # #?# | | ????????????????????????# ## ## """"""" # #?#### | | ????????????????????????# ## ## """"""" # #????? | | ????????????????????????# [+% ## """"""" # #????? | | ????????????????????????# ##* ## """"""" # #????? | | ????????????????????????# ##+#### """"""" # ####?? | | ????????????????????????#@[%*#??# + #?? | | ????????????????????????#Y%=[#??########### #?? | | ????????????????????????# s ############## #?? | | ????????????????????????# ? | | ????????????????????????########################## | | ?????????????????????????????????????????????????? | | ?????????????????????????????????????????????????? | | ?????????????????????????????????????????????????? | | | | | | | | | | | | | | | | | | | | | | | | | | | | | | | | | | | +----------------------------------------------------+ Best States ------------- Heat Dissipation 28 Energy Generation 10 Energy Capacity 250 Matter Stores 300 Matter Capacity 300 Sight Range 16 Robot Scan Range 14 Terrain Scan Density 10 ECM Strength 1 Evasion (%) 64 Item Schematics ----------------- None Robot Schematics ------------------ None Fabricated ------------ Nothing Alien Tech Used ----------------- None Achievements -------------- Loot Pinata Challenges ------------ None Game ------ Seed HypervelocityNeutrinoTreads Manual? 0 Play Time 00:36:18 Cumulative 6.6 hours Start 2024.07.06 @ 22:40:19 End 2024.07.06 @ 23:14:57 Sessions 1 Manual Loads 0 Difficulty Rogue Special Mode None Game No. 7 Rogue 7 Adventurer 0 Explorer 0 Win Type - Total 0 Types 0/0/0/0/0/0/0/0/0 Lore% 10 Gallery% 12 Achievement% 10 Wizard Run 0 Options --------- Layout 1 ASCII 0 Keyboard 0 Movement Numpad Keybinds 0 Fullscreen 1 Font 24/Smallcaps Map View 50x35 Zoom Use 0% Tactical HUD 0 Map Filters NONE Filters NONE Steam 0 RUN: ef53e953-e142-4b29-b575-8273d3faf930